bitfinex/quotes_BTCUSD_20240902
["timestamp","ask_amount","ask_price","bid_price","bid_amount"]
[1725286557813,0.0034334,58306.0,58305.0,0.1]
[1725286558290,0.171503,58308.0,58305.0,0.1]
[1725286558510,0.0034334,58306.0,58305.0,0.271511]
[1725286558735,0.34299,58311.0,58305.0,0.102]
[1725286558996,0.0034334,58306.0,58305.0,0.97351]
[1725286559213,0.171504,58308.0,58305.0,0.97351]
[1725286559444,0.01604929,58307.0,58305.0,0.97751]
[1725286559680,0.019482,58307.0,58305.0,0.802]
[1725286559901,0.00343271,58307.0,58305.0,0.802]
[1725286560123,0.00343271,58307.0,58305.0,0.97351]
[1725286560358,0.00343271,58307.0,58306.0,0.171508]
[1725286560587,0.01605036,58307.0,58306.0,0.8]
[1725286560816,0.01948376,58307.0,58306.0,0.8]
[1725286561271,0.01948376,58307.0,58306.0,1.687525]
[1725286561723,0.0034334,58307.0,58306.0,2.030542]
[1725286561951,0.171492,58312.0,58308.0,0.171501]
[1725286562231,0.171492,58312.0,58309.0,0.1]
[1725286562456,0.01605325,58311.0,58309.0,0.1]
[1725286562713,0.01605325,58310.0,58309.0,0.1]
[1725286562934,0.18754825,58311.0,58309.0,0.1]
[1725286563146,0.01605325,58310.0,58309.0,0.8]
[1725286564109,0.18755025,58310.0,58309.0,0.8]
[1725286564765,0.01605325,58310.0,58309.0,0.8]
[1725286564980,0.01605325,58310.0,58309.0,1.4715]
[1725286565437,0.01604932,58310.0,58309.0,1.4715]
[1725286566952,0.01604932,58310.0,58309.0,1.3]
[1725286567471,0.01604932,58310.0,58309.0,1.4715]
[1725286568367,0.01604932,58310.0,58309.0,1.8145]
[1725286568601,0.01604932,58310.0,58309.0,1.8375]
[1725286568831,0.117,58316.0,58313.0,0.171485]
[1725286569055,0.02567785,58315.0,58314.0,0.271484]
[1725286569354,0.0417265,58315.0,58314.0,0.271484]
[1725286569575,0.06116161,58315.0,58314.0,0.1]
[1725286570044,0.05777457,58315.0,58314.0,1.314455]
[1725286570291,0.03548353,58315.0,58314.0,1.214455]
[1725286570518,0.06116172,58315.0,58314.0,0.802]
[1725286570740,0.06116172,58315.0,58314.0,0.8]
[1725286570973,0.23264372,58315.0,58314.0,0.8]
[1725286571197,0.23264372,58315.0,58314.0,0.806]
[1725286571198,1.72219598,58315.0,58314.0,0.806]
[1725286571420,1.72219598,58315.0,58314.0,0.106]
[1725286571852,1.70614733,58315.0,58314.0,0.106]
[1725286572075,1.50909186,58315.0,58314.0,0.111]
[1725286572302,1.50909224,58315.0,58314.0,0.111]
[1725286572742,1.50909224,58315.0,58314.0,0.011]
[1725286573636,1.25327558,58315.0,58314.0,0.011]
[1725286573858,1.42798406,58315.0,58314.0,0.011]
[1725286574084,1.08502006,58315.0,58314.0,0.011]
[1725286575489,1.04328827,58315.0,58314.0,0.011]
[1725286575731,1.05934004,58315.0,58314.0,0.011]
[1725286575951,1.08502287,58315.0,58314.0,0.011]
[1725286578466,1.42798687,58315.0,58314.0,0.011]
[1725286578693,1.62504713,58315.0,58314.0,0.006]
[1725286578928,1.58331253,58315.0,58314.0,0.006]
[1725286579136,0.85747,58311.0,58310.0,0.1]
[1725286579609,0.90242568,58311.0,58310.0,0.1]
[1725286579815,1.02222568,58311.0,58310.0,0.1]
[1725286580030,0.73010576,58311.0,58310.0,0.1]
[1725286580272,1.56227394,58311.0,58310.0,0.1]
[1725286580496,0.171508,58306.0,58305.0,0.1]
[1725286580743,0.21323484,58306.0,58305.0,0.1]
[1725286580990,0.19077746,58306.0,58305.0,0.1]
[1725286581965,0.21645255,58306.0,58305.0,0.1]
[1725286582238,0.90248655,58306.0,58305.0,0.1]
[1725286582461,0.86076119,58306.0,58305.0,0.109]
[1725286582734,0.53379031,58306.0,58305.0,0.12]
[1725286582981,0.01926531,58306.0,58305.0,0.12]
[1725286583693,0.01926531,58306.0,58305.0,1.17]
[1725286583944,0.01926531,58306.0,58305.0,1.707534]
[1725286584171,0.01604612,58306.0,58305.0,1.707534]
[1725286584670,0.01604612,58306.0,58305.0,2.050557]
[1725286584927,0.01604612,58306.0,58305.0,2.40358]
[1725286585152,0.01604612,58306.0,58305.0,2.65928]
[1725286585409,0.342942,58319.0,58315.0,0.5]
[1725286585655,0.04172805,58318.0,58315.0,0.5]
[1725286585871,0.171479,58316.0,58315.0,0.5]
[1725286586350,0.17470309,58316.0,58315.0,0.5]
[1725286586801,0.01927375,58316.0,58315.0,0.5]
[1725286587033,0.01927375,58316.0,58315.0,0.671482]
[1725286587263,0.01927375,58316.0,58315.0,0.794482]
[1725286587740,0.01927375,58316.0,58315.0,0.623]
[1725286588953,0.19075275,58316.0,58315.0,0.623]
[1725286589202,0.01927375,58316.0,58315.0,0.623]
[1725286589426,0.00322409,58316.0,58315.0,1.323]
[1725286589658,0.0192868,58316.0,58315.0,1.323]
[1725286590280,0.0192868,58316.0,58315.0,0.623]
[1725286591233,0.0192868,58316.0,58315.0,0.794482]
[1725286592192,0.0192868,58316.0,58315.0,0.623]
[1725286592475,0.00322409,58316.0,58315.0,0.623]
[1725286592694,0.01928694,58316.0,58315.0,0.623]
[1725286593402,0.19076594,58316.0,58315.0,1.3]
[1725286593632,0.79602494,58316.0,58315.0,1.3]
[1725286593851,1.13898394,58316.0,58315.0,1.3]
[1725286594068,1.13898394,58316.0,58315.0,0.6]
[1725286595289,1.48194294,58316.0,58315.0,0.1]
[1725286595526,0.625416,58307.0,58306.0,0.14924305]
[1725286595793,1.13228985,58307.0,58306.0,0.14924305]
[1725286596022,1.13552548,58307.0,58306.0,0.1]
[1725286597186,1.13552548,58307.0,58306.0,0.118]
[1725286599206,1.47853648,58307.0,58306.0,0.118]
[1725286600388,1.82154748,58307.0,58306.0,0.118]
[1725286600838,1.82154748,58307.0,58306.0,0.018]
[1725286601735,2.16455848,58307.0,58306.0,0.018]
[1725286601985,2.24152086,58307.0,58306.0,0.018]
[1725286602236,2.16455848,58307.0,58306.0,0.018]
[1725286602743,2.16455848,58307.0,58283.0,0.52843904]
[1725286602744,0.857867,58284.0,58283.0,0.52843904]
[1725286602957,1.33947685,58284.0,58283.0,0.04963904]
[1725286603183,1.33947685,58284.0,58276.0,0.5]
[1725286603184,0.514782,58277.0,58276.0,0.5]
[1725286603401,0.85797,58277.0,58276.0,0.5]
[1725286603632,0.86115488,58277.0,58276.0,0.5]
[1725286603862,0.858015,58274.0,58269.0,0.5]
[1725286604091,0.858015,58274.0,58273.0,0.547595]
[1725286604309,0.514809,58274.0,58273.0,0.4788]
[1725286604532,0.51799388,58274.0,58273.0,0.4788]
[1725286604760,0.86119988,58274.0,58273.0,0.4788]
[1725286605014,0.86119988,58274.0,58265.0,0.04917433]
[1725286605015,0.1381,58273.0,58265.0,0.04917433]
[1725286605282,1.05519226,58266.0,58265.0,0.04917433]
[1725286605500,1.39844526,58266.0,58265.0,0.04917433]
[1725286605711,1.39844526,58266.0,58262.0,0.9788]
[1725286605712,0.858177,58263.0,58262.0,0.9788]
[1725286606401,0.17480854,58263.0,58262.0,0.9788]
[1725286606585,0.51807954,58263.0,58262.0,0.9788]
[1725286607060,0.51907954,58263.0,58262.0,0.9818]
[1725286607272,0.51907954,58263.0,58262.0,1.0818]
[1725286608351,0.51807954,58263.0,58262.0,1.0788]
[1725286608565,0.51907954,58263.0,58262.0,1.0818]
[1725286608787,0.86235054,58263.0,58262.0,1.0818]
[1725286609007,0.86135054,58263.0,58262.0,1.0818]
[1725286609214,0.17580854,58263.0,58262.0,0.603]
[1725286609432,0.51907954,58263.0,58262.0,0.603]
[1725286609658,0.51807954,58263.0,58262.0,0.603]
[1725286609868,0.51907954,58263.0,58262.0,0.6]
[1725286610291,0.52007954,58263.0,58262.0,0.608]
[1725286610789,0.51907954,58263.0,58262.0,0.6]
[1725286611237,0.51907954,58263.0,58262.0,0.603]
[1725286611711,0.51807954,58263.0,58262.0,0.6]
[1725286611946,0.52007954,58263.0,58262.0,0.608]
[1725286612192,0.86235054,58263.0,58262.0,0.608]
[1725286612651,0.86335054,58263.0,58262.0,0.608]
[1725286612942,0.86235054,58263.0,58262.0,0.608]
[1725286613172,0.86235054,58263.0,58262.0,0.6]
[1725286613646,0.51907954,58263.0,58262.0,0.603]
[1725286614098,0.51907954,58263.0,58262.0,0.6]
[1725286614326,0.51907954,58263.0,58262.0,0.608]
[1725286614327,0.52007954,58263.0,58262.0,0.608]
[1725286614553,0.51907954,58263.0,58262.0,0.608]
[1725286614776,0.43822309,58263.0,58262.0,0.6]
[1725286614998,0.43922309,58263.0,58262.0,0.604]
[1725286615241,0.43822309,58263.0,58262.0,0.604]
[1725286615571,0.43922309,58263.0,58262.0,0.608]
[1725286615899,0.43822309,58263.0,58262.0,0.604]
[1725286616125,0.17526635,58263.0,58262.0,0.608]
[1725286616350,0.00363135,58263.0,58262.0,0.604]
[1725286616582,0.17526635,58263.0,58262.0,0.604]
[1725286616868,0.17526635,58263.0,58262.0,1.48519]
[1725286616869,0.00363135,58263.0,58262.0,1.48519]
[1725286617120,0.00363135,58263.0,58262.0,1.48119]
[1725286617386,0.001,58263.0,58262.0,1.94815026]
[1725286617853,0.001,58263.0,58262.0,2.29542626]
[1725286617854,0.002,58263.0,58262.0,2.29542626]
[1725286618082,0.001,58263.0,58262.0,2.29542626]
[1725286618315,0.002,58263.0,58262.0,2.102366]
[1725286618560,0.003,58263.0,58262.0,2.110366]
[1725286619064,0.003,58263.0,58262.0,2.106366]
[1725286619291,0.001,58263.0,58262.0,2.102366]
[1725286619514,0.002,58263.0,58262.0,2.106366]
[1725286620003,0.002,58263.0,58262.0,0.604]
[1725286620004,0.001,58263.0,58262.0,0.604]
[1725286620470,0.173635,58263.0,58262.0,0.617]
[1725286620976,0.514906,58263.0,58262.0,0.6]
[1725286621207,0.515906,58263.0,58262.0,0.621]
[1725286621421,0.859177,58263.0,58262.0,0.621]
[1725286621633,0.858177,58263.0,58262.0,0.6]
[1725286621848,0.859177,58263.0,58262.0,0.609]
[1725286622101,0.859177,58263.0,58262.0,0.616]
[1725286622321,0.858177,58263.0,58262.0,0.607]
[1725286622553,0.859177,58263.0,58262.0,0.618]
[1725286623188,0.859177,58263.0,58262.0,0.118]
[1725286623401,0.859177,58263.0,58262.0,0.011]
[1725286623750,0.859177,58263.0,58262.0,0.02]
[1725286624154,0.859177,58263.0,58262.0,0.011]
[1725286624585,0.17165,58258.0,58257.0,0.1]
[1725286624797,0.51495,58258.0,58257.0,0.1]
[1725286625241,0.343286,58261.0,58257.0,0.1]
[1725286625457,0.171648,58259.0,58257.0,0.1]
[1725286625658,0.17165,58258.0,58257.0,0.1]
[1725286626264,0.51495,58258.0,58257.0,0.1]
[1725286626472,0.85825,58258.0,58257.0,0.1]
[1725286627507,0.85825,58258.0,58257.0,0.105]
[1725286627720,0.001,58258.0,58257.0,0.117]
[1725286627930,0.17165,58258.0,58257.0,0.1]
[1725286628370,0.17165,58258.0,58257.0,0.108]
[1725286628578,0.17265,58258.0,58257.0,0.119]
[1725286628790,0.001,58258.0,58257.0,0.290653]
[1725286629012,0.001,58258.0,58257.0,1.25579775]
[1725286629227,0.001,58258.0,58257.0,1.62210375]
[1725286629894,0.001,58258.0,58257.0,1.275365]
[1725286630123,0.001,58258.0,58257.0,1.618671]
[1725286631024,0.001,58258.0,58257.0,1.71272466]
[1725286631894,0.001,58258.0,58257.0,1.618671]
[1725286633713,0.001,58258.0,58257.0,1.125165]
[1725286633950,0.001,58258.0,58257.0,1.468471]
[1725286635380,0.17265,58258.0,58257.0,0.119]
[1725286635626,0.5319685,58258.0,58257.0,0.119]
[1725286635847,0.1886685,58258.0,58257.0,0.119]
[1725286636078,0.5319685,58258.0,58257.0,0.119]
[1725286636299,0.1886685,58258.0,58257.0,0.119]
[1725286636992,0.17265,58258.0,58257.0,0.119]
[1725286637433,0.53196612,58258.0,58257.0,0.119]
[1725286637885,0.17165,58258.0,58257.0,0.119]
[1725286639688,0.51495,58258.0,58257.0,0.119]
[1725286639948,1.66891026,58258.0,58257.0,0.019]
[1725286640171,1.69454267,58258.0,58257.0,0.019]
[1725286640412,1.69454081,58258.0,58257.0,0.019]
[1725286640860,0.858397,58248.0,58247.0,0.0012178]
[1725286641077,1.48498655,58248.0,58247.0,0.0012178]
[1725286641539,1.48498811,58248.0,58247.0,0.0012178]
[1725286642187,1.459356,58248.0,58247.0,0.0012178]
[1725286642405,1.460356,58248.0,58247.0,0.0102178]
[1725286642839,0.1154,58248.0,58247.0,0.0102178]
[1725286643071,0.001,58248.0,58247.0,0.0102178]
[1725286644701,0.001,58248.0,58247.0,0.1818998]
[1725286644920,0.001,58248.0,58247.0,0.1102178]
[1725286645138,0.002,58248.0,58247.0,0.1162178]
[1725286645358,0.002,58248.0,58247.0,1.94342361]
[1725286645595,0.002,58248.0,58247.0,2.30978861]
[1725286645808,0.001,58248.0,58247.0,2.11272835]
[1725286646029,0.19706026,58266.0,58253.0,0.5]
[1725286646299,0.171641,58262.0,58254.0,0.1]
[1725286646483,0.171642,58261.0,58254.0,0.1]
[1725286646705,0.343276,58262.0,58254.0,0.1]
[1725286647170,0.171638,58262.0,58254.0,0.27166]
[1725286647665,0.179638,58262.0,58255.0,0.171658]
[1725286647893,0.007,58266.0,58256.0,0.1]
[1725286648123,0.19706026,58282.0,58263.0,0.5]
[1725286648340,0.17161,58272.0,58265.0,0.171328]
[1725286648562,0.19706026,58282.0,58266.0,0.1]
[1725286648563,0.171615,58270.0,58266.0,0.1]
[1725286648795,0.54024426,58278.0,58266.0,0.0999]
[1725286649009,0.171612,58271.0,58266.0,0.0978]
[1725286649224,0.171612,58271.0,58266.0,0.0973]
[1725286649443,0.2608,58277.0,58267.0,0.343245]
[1725286649661,0.2608,58277.0,58268.0,0.17152]
[1725286649662,0.171601,58275.0,58268.0,0.17152]
[1725286649887,0.1154,58277.0,58268.0,0.17152]
[1725286650135,0.171602,58275.0,58268.0,0.32282]
[1725286650352,0.171602,58275.0,58268.0,0.32272]
[1725286650569,0.1154,58277.0,58271.0,0.171611]
[1725286650788,0.34317,58281.0,58271.0,0.171611]
[1725286650789,0.171588,58279.0,58271.0,0.171611]
[1725286651002,0.45797,58281.0,58271.0,0.171611]
[1725286651003,0.1972354,58278.0,58271.0,0.171611]
[1725286651216,0.171598,58276.0,58270.0,0.123]
[1725286651691,0.343173,58280.0,58271.0,0.1]
[1725286651936,0.1148,58281.0,58271.0,0.108]
[1725286652156,0.1148,58281.0,58274.0,0.171601]
[1725286652378,0.34312,58289.0,58280.0,0.171584]
[1725286652379,0.1141,58289.0,58280.0,0.171584]
[1725286652593,0.1141,58289.0,58281.0,0.1]
[1725286652814,0.171567,58287.0,58281.0,0.1]
[1725286653256,0.166567,58287.0,58281.0,0.1]
[1725286653468,0.166567,58287.0,58282.0,0.1178]
[1725286654233,0.343112,58290.0,58283.0,0.271575]
[1725286654234,0.171556,58290.0,58283.0,0.271575]
[1725286654238,0.171542,58295.0,58285.0,0.5]
[1725286654478,0.171534,58298.0,58289.0,0.343114]
[1725286654708,0.171534,58298.0,58286.0,0.514702]
[1725286654709,0.003,58287.0,58286.0,0.514702]
[1725286654942,0.171533,58298.0,58289.0,0.343116]
[1725286655173,0.343029,58304.0,58286.0,0.17280981]
[1725286655174,0.171539,58296.0,58290.0,0.1]
[1725286655403,0.343053,58300.0,58290.0,0.443111]
[1725286655649,0.17153,58299.0,58292.0,0.171549]
[1725286655896,0.171533,58298.0,58293.0,0.1]
[1725286656125,0.171533,58298.0,58291.0,0.171551]
[1725286656356,0.171533,58298.0,58292.0,0.1]
[1725286656881,0.171536,58297.0,58292.0,0.1]
[1725286657135,0.514573,58301.0,58293.0,0.171545]
[1725286657387,0.514573,58301.0,58294.0,0.3828]
[1725286657388,0.171527,58300.0,58294.0,0.3828]
[1725286657637,0.343029,58304.0,58294.0,0.3828]
[1725286657892,0.343029,58304.0,58296.0,0.171536]
[1725286658125,0.171525,58301.0,58294.0,0.554342]
[1725286658391,0.171527,58300.0,58294.0,0.2575]
[1725286658623,0.492021,58306.0,58294.0,0.2575]
[1725286658624,0.171541,58295.0,58294.0,0.1]
[1725286658871,1.200787,58295.0,58294.0,0.1]
[1725286659163,1.325687,58295.0,58294.0,0.1]
[1725286659379,0.857735,58293.0,58292.0,0.011]
[1725286659840,0.514641,58293.0,58292.0,0.011]
[1725286660065,0.171547,58293.0,58292.0,0.011]
[1725286660521,0.171551,58292.0,58290.0,0.1]
[1725286660741,0.17155,58292.0,58290.0,0.1]
[1725286661009,0.171548,58293.0,58290.0,0.1]
[1725286661234,0.343082,58295.0,58290.0,0.2217]
[1725286661235,0.171545,58294.0,58290.0,0.2217]
[1725286661452,0.171545,58294.0,58292.0,0.016]
[1725286661912,0.1501,58303.0,58292.0,0.016]
[1725286661913,0.46833,58304.0,58294.0,0.5]
[1725286662128,0.171527,58300.0,58295.0,0.1]
[1725286662846,0.34303,58304.0,58295.0,0.1]
[1725286662847,0.171515,58304.0,58298.0,0.171531]
[1725286663036,0.171515,58304.0,58299.0,0.1]
[1725286663252,0.1253,58308.0,58299.0,0.1]
[1725286663468,0.171504,58308.0,58302.0,0.171519]
[1725286663685,0.171504,58308.0,58303.0,0.1]
[1725286664115,0.171507,58307.0,58303.0,0.1]
[1725286664341,0.171502,58309.0,58303.0,0.1]
[1725286664557,0.464961,58316.0,58308.0,0.5]
[1725286664558,0.171491,58312.0,58308.0,0.5]
[1725286664792,0.171491,58312.0,58309.0,0.1]
[1725286665011,0.171494,58311.0,58309.0,0.1]
[1725286665444,0.342977,58313.0,58309.0,0.1]
[1725286665445,0.171497,58310.0,58309.0,0.1]
[1725286665653,0.342972,58314.0,58309.0,0.123]
[1725286665891,0.342972,58314.0,58309.0,0.1]
[1725286666130,0.171489,58313.0,58309.0,0.1]
[1725286666354,0.342963,58316.0,58309.0,0.1]
[1725286666571,0.514491,58310.0,58309.0,0.1]
[1725286668123,0.514491,58310.0,58309.0,0.101]
[1725286668773,0.171497,58310.0,58309.0,0.101]
[1725286668990,0.514491,58310.0,58309.0,0.101]
[1725286669460,0.514491,58310.0,58309.0,0.001]
[1725286669461,1.65383926,58310.0,58309.0,0.001]
[1725286669707,2.33982726,58310.0,58309.0,0.001]
[1725286670377,2.3558644,58310.0,58309.0,0.001]
[1725286670605,2.29622545,58310.0,58309.0,0.001]
[1725286670840,2.31226253,58310.0,58309.0,0.001]
[1725286671318,2.49081417,58310.0,58309.0,0.001]
[1725286671546,0.857765,58291.0,58290.0,0.50540786]
[1725286672046,0.17156,58289.0,58283.0,0.655176]
[1725286672306,0.171563,58288.0,58284.0,0.7]
[1725286672554,0.343113,58290.0,58284.0,0.7]
[1725286672803,0.343121,58289.0,58285.0,0.1]
[1725286673092,0.171566,58287.0,58285.0,0.1]
[1725286673300,0.514682,58289.0,58285.0,0.1]
[1725286673526,0.343108,58291.0,58285.0,0.1]
[1725286673757,0.343114,58290.0,58285.0,0.1]
[1725286673988,0.171563,58288.0,58285.0,0.1]
[1725286674476,0.171565,58287.0,58285.0,0.1]
[1725286674720,0.171565,58287.0,58285.0,0.112]
[1725286675241,0.171565,58287.0,58285.0,0.1]
[1725286675487,0.343085,58295.0,58285.0,0.1]
[1725286675488,0.171564,58288.0,58285.0,0.013]
[1725286675737,0.171564,58288.0,58287.0,0.35]
[1725286675974,0.1167,58298.0,58287.0,0.35]
[1725286675975,0.171556,58290.0,58289.0,0.5]
[1725286676205,0.171556,58290.0,58289.0,0.6]
[1725286676939,0.514668,58290.0,58289.0,0.6]
[1725286678113,0.514668,58290.0,58289.0,0.61]
[1725286678570,0.514668,58290.0,58289.0,0.623]
[1725286679740,0.171556,58290.0,58289.0,0.623]
[1725286680011,0.171535,58298.0,58295.0,0.5]
[1725286680264,0.18758317,58297.0,58296.0,0.1]
[1725286680496,0.343057,58300.0,58296.0,0.123]
[1725286680753,0.1228,58307.0,58296.0,0.1]
[1725286680754,0.171535,58297.0,58296.0,0.1]
[1725286680994,0.514605,58297.0,58296.0,0.1]
[1725286681478,0.53065373,58297.0,58296.0,0.1]
[1725286681711,0.53065373,58297.0,58296.0,0.104]
[1725286681946,0.53065373,58297.0,58296.0,0.107]
[1725286682497,1.21679373,58297.0,58296.0,0.107]
[1725286682745,0.89940097,58297.0,58296.0,0.007]
[1725286682990,0.89940097,58297.0,58296.0,0.155]
[1725286682991,0.01604873,58297.0,58296.0,0.155]
[1725286683244,0.343025,58305.0,58301.0,0.5]
[1725286683500,0.343005,58309.0,58302.0,0.1]
[1725286683501,0.01605072,58304.0,58302.0,0.1]
[1725286683757,0.01605072,58303.0,58302.0,0.10343016]
[1725286683976,0.171511,58306.0,58303.0,0.023]
[1725286684216,0.171506,58307.0,58303.0,0.023]
[1725286684457,0.343002,58309.0,58303.0,0.023]
[1725286684458,0.016052,58305.0,58303.0,0.023]
[1725286684692,0.001,58304.0,58303.0,0.023]
[1725286685151,0.171506,58307.0,58303.0,0.194515]
[1725286685377,0.171506,58307.0,58304.0,0.1]
[1725286685378,0.001,58306.0,58304.0,0.1]
[1725286685631,0.01705231,58306.0,58304.0,0.1]
[1725286685907,0.18756332,58305.0,58304.0,0.1]
[1725286686370,0.01605232,58305.0,58304.0,0.1]
[1725286686581,0.171511,58306.0,58303.0,0.124]
[1725286686799,0.171514,58304.0,58303.0,0.123]
[1725286687018,0.514543,58304.0,58303.0,0.1]
[1725286687239,0.171517,58303.0,58302.0,0.1]
[1725286687457,0.001,58304.0,58302.0,0.1]
[1725286687678,0.001,58304.0,58303.0,0.194517]
[1725286687923,0.171507,58307.0,58303.0,0.30194695]
[1725286688134,0.171507,58307.0,58304.0,0.1]
[1725286688360,0.342981,58313.0,58309.0,0.5]
[1725286688597,0.171497,58310.0,58309.0,0.5]
[1725286688823,0.342944,58319.0,58312.0,0.171488]
[1725286689050,0.342944,58319.0,58313.0,0.0034294]
[1725286689051,0.171479,58316.0,58313.0,0.0034294]
[1725286689283,0.01604773,58315.0,58313.0,0.1]
[1725286689528,0.32166026,58326.0,58317.0,0.5]
[1725286689529,0.04172412,58318.0,58317.0,0.5]
[1725286689759,0.171446,58328.0,58324.0,0.171453]
[1725286689976,0.19706026,58339.0,58326.0,0.521449]
[1725286689977,0.01605099,58327.0,58326.0,0.521449]
[1725286690168,0.171438,58330.0,58329.0,0.5]
[1725286690446,0.34282,58340.0,58329.0,0.5]
[1725286690671,0.04173598,58339.0,58330.0,0.2163]
[1725286690898,0.34286,58333.0,58330.0,0.2163]
[1725286691162,0.18748453,58332.0,58330.0,0.2163]
[1725286691390,0.171404,58342.0,58338.0,0.5]
[1725286691611,0.171408,58340.0,58339.0,0.1]
[1725286691823,0.53027922,58340.0,58339.0,0.1]
[1725286692044,0.87309622,58340.0,58339.0,0.1]
[1725286692350,0.01605422,58340.0,58339.0,0.1]
[1725286692444,0.171407,58341.0,58339.0,0.1]
[1725286692659,0.171408,58340.0,58339.0,0.1]
[1725286693559,0.514225,58340.0,58339.0,0.1]
[1725286693775,0.857042,58340.0,58339.0,0.1]
[1725286694244,0.857042,58340.0,58339.0,0.101]
[1725286694480,0.857042,58340.0,58339.0,0.001]
[1725286694926,1.199859,58340.0,58339.0,0.001]
[1725286695669,1.821676,58340.0,58339.0,0.001]
[1725286695932,1.83772879,58340.0,58339.0,0.001]
[1725286696183,2.94500077,58340.0,58339.0,0.001]
[1725286696415,1.86341013,58340.0,58339.0,0.001]
[1725286696646,2.06047039,58340.0,58339.0,0.001]
[1725286697874,0.857292,58323.0,58322.0,0.1]
[1725286698106,0.28717911,58323.0,58322.0,0.1]
[1725286698341,0.171458,58323.0,58322.0,0.1]
[1725286698571,0.171458,58323.0,58320.0,0.5]
[1725286698572,0.171458,58323.0,58321.0,0.1]
[1725286699056,0.171459,58323.0,58321.0,0.1]
[1725286699524,0.342881,58330.0,58323.0,0.291158]
[1725286699769,0.342884,58329.0,58324.0,0.10342875]
[1725286700047,0.342884,58329.0,58324.0,0.1]
[1725286700284,0.171447,58327.0,58324.0,0.1]
[1725286700507,0.171438,58330.0,58329.0,0.5]
[1725286700731,0.171438,58330.0,58329.0,0.6]
[1725286701221,0.171434,58332.0,58329.0,0.6]
[1725286701496,0.40462068,58344.0,58333.0,0.1519]
[1725286701745,0.171423,58335.0,58334.0,0.1]
[1725286702011,0.342781,58347.0,58337.0,0.5]
[1725286702247,0.342748,58352.0,58337.0,0.5]
[1725286702248,0.171411,58340.0,58338.0,0.10342793]
[1725286702475,0.171411,58340.0,58338.0,0.1]
[1725286702968,0.171411,58339.0,58338.0,0.1]
[1725286703425,0.171409,58340.0,58338.0,0.1]
[1725286703701,1.47168,58339.0,58338.0,0.1]
[1725286703943,0.342834,58338.0,58333.0,0.1]
[1725286704204,0.514279,58334.0,58333.0,0.1]
[1725286704439,0.514279,58334.0,58328.0,0.04915171]
[1725286704440,0.857205,58329.0,58328.0,0.04915171]
[1725286704940,0.85728,58324.0,58323.0,0.3325]
[1725286705714,0.85728,58324.0,58323.0,0.4325]
[1725286705934,0.85728,58324.0,58323.0,0.3325]
[1725286706172,0.88732015,58324.0,58323.0,0.3325]
[1725286706402,1.23023215,58324.0,58323.0,0.3325]
[1725286706629,0.54440815,58324.0,58323.0,0.3325]
[1725286706897,0.342893,58328.0,58323.0,0.3325]
[1725286706898,0.171451,58326.0,58323.0,0.3325]
[1725286707118,0.171456,58324.0,58323.0,0.3325]
[1725286707359,0.514368,58324.0,58323.0,0.4325]
[1725286707786,0.514368,58324.0,58323.0,0.4465]
[1725286708300,0.514368,58324.0,58323.0,0.4605]
[1725286708778,0.514368,58324.0,58323.0,0.4465]
[1725286709288,0.1206,58339.0,58327.0,0.6517]
[1725286709539,0.34279,58345.0,58327.0,0.6517]
[1725286709540,0.342847,58335.0,58328.0,0.2495283]
[1725286709766,0.2774,58344.0,58328.0,0.2495283]
[1725286709767,0.342836,58337.0,58333.0,0.85]
[1725286710013,0.2774,58344.0,58333.0,0.85]
[1725286710014,0.17142,58336.0,58334.0,0.1]
[1725286710249,0.342819,58340.0,58334.0,0.1]
[1725286710486,0.514252,58337.0,58336.0,0.1556]
[1725286710769,0.171423,58335.0,58334.0,0.1]
[1725286711020,0.857117,58335.0,58334.0,0.1]
[1725286711247,0.51427,58335.0,58334.0,0.1]
[1725286711475,0.51427,58335.0,58334.0,0.101]
[1725286711914,0.51427,58335.0,58334.0,0.1]
[1725286712161,0.342799,58344.0,58334.0,0.107]
[1725286712403,0.171406,58341.0,58339.0,0.5]
[1725286712654,0.171406,58341.0,58340.0,0.1]
[1725286713474,0.171406,58341.0,58334.0,0.007]
[1725286713475,0.685694,58335.0,58334.0,0.007]
[1725286713708,0.665023,58329.0,58328.0,0.04939922]
[1725286713962,1.42135992,58329.0,58328.0,0.04939922]
[1725286714252,0.514429,58317.0,58316.0,0.50540786]
[1725286714489,0.514429,58317.0,58316.0,0.5553744]
[1725286714490,0.857382,58317.0,58316.0,0.5553744]
[1725286714708,0.857382,58317.0,58309.0,0.5]
[1725286714709,0.171486,58314.0,58309.0,0.5]
[1725286715146,0.342967,58315.0,58309.0,0.5]
[1725286715585,0.171486,58314.0,58309.0,0.5]
[1725286716031,0.171484,58315.0,58309.0,0.5]
[1725286716454,0.171485,58314.0,58310.0,0.1]
[1725286716692,0.171491,58312.0,58310.0,0.123]
[1725286716922,0.24612068,58324.0,58310.0,0.123]
[1725286717146,0.24612068,58324.0,58311.0,0.00342953]
[1725286717147,0.171487,58314.0,58311.0,0.00342953]
[1725286717361,0.342961,58316.0,58310.0,0.123]
[1725286717577,0.342925,58322.0,58310.0,0.123]
[1725286717578,0.171488,58314.0,58310.0,0.123]